fUST/lending_fUST_20250701
["ID","MTS","AMOUNT","RATE_DAILY","PERIOD"]
[368783251,1751365044166,3641.46624662,0.000171,2]
[368783252,1751365047495,211.1029056,0.00016704,2]
[368783253,1751365059573,5000.0,0.000171,2]
[368783255,1751365075839,5000.0,0.000171,2]
[368783256,1751365077304,578.889299,0.00013699,2]
[368783258,1751365091228,5000.0,0.000171,2]
[368783259,1751365107096,568.54154878,0.000171,2]
[368783260,1751365107120,4431.45845122,0.000171,2]
[368783264,1751365123041,5000.0,0.000171,2]
[368783266,1751365138283,5000.0,0.000171,2]
[368783268,1751365154588,5000.0,0.000171,2]
[368783270,1751365169957,568.54154878,0.000171,2]
[368783271,1751365169981,4431.45845122,0.000171,2]
[368783275,1751365186079,5000.0,0.000171,2]
[368783276,1751365203431,10568.54154878,0.00016703,2]
[368783277,1751365203456,14515.42983272,0.00016703,2]
[368783278,1751365203942,5000.0,0.000171,2]
[368783279,1751365219952,484.57016728,0.000171,2]
[368783280,1751365219976,4515.42983272,0.000171,2]
[368783281,1751365222604,15484.57016728,0.00016703,2]
[368783282,1751365222628,9415.42983272,0.00016703,2]
[368783284,1751365236595,5000.0,0.000171,2]
[368783287,1751365246395,3683.1893203,0.00016708,2]
[368783288,1751365252432,1901.38084698,0.000171,2]
[368783289,1751365252458,3098.61915302,0.000171,2]
[368783291,1751365258149,750.561927,0.00016705,2]
[368783292,1751365268747,5000.0,0.000171,2]
[368783293,1751365275338,1700.2350824,0.00025134,60]
[368783294,1751365283496,1000.0,0.00025134,120]
[368783295,1751365284705,5000.0,0.000171,2]
[368783298,1751365290838,1212.0461805,0.00016703,2]
[368783300,1751365293529,188.82924563,0.00025134,60]
[368783303,1751365300117,4938.77273948,0.000171,2]
[368783304,1751365300143,61.22726052,0.000171,2]
[368783305,1751365364892,153.0,0.00024,120]
[368783306,1751365380764,2155.94937027,0.00025134,60]
[368783307,1751365385440,500.0,0.00024658,120]
[368783308,1751365406078,235.0,0.00021985,120]
[368783309,1751365406588,235.0,0.00021975,120]
[368783310,1751365406681,150.5,0.00021985,120]
[368783311,1751365407032,235.0,0.00021965,120]
[368783312,1751365407137,150.5,0.00021975,120]
[368783313,1751365407401,681.0,0.00024658,120]
[368783314,1751365407739,158.19,0.00021965,120]
[368783315,1751365408485,150.5,0.00021985,120]
[368783316,1751365408926,150.5,0.00021975,120]
[368783317,1751365409381,210.64,0.00021965,120]
[368783318,1751365442659,447.0,0.00025134,60]
[368783319,1751365442981,447.0,0.00025134,60]
[368783320,1751365443331,447.0,0.00025134,60]
[368783321,1751365443693,447.0,0.00025134,60]
[368783322,1751365444090,447.0,0.00025134,60]
[368783323,1751365444482,448.0,0.00025134,60]
[368783324,1751365447220,728.0,0.00025134,60]
[368783325,1751365447525,729.0,0.00025134,60]
[368783326,1751365447883,728.0,0.00025134,60]
[368783327,1751365448228,728.0,0.00025134,60]
[368783329,1751365448586,728.0,0.00025134,60]
[368783330,1751365449009,728.0,0.00025134,60]
[368783331,1751365458553,628.50977,0.00025134,120]
[368783333,1751365467181,-198.58631263,0.00017243,2]
[368783334,1751365474138,-56.41368737,0.00017243,2]
[368783335,1751365503491,166.0,0.00016594,2]
[368783336,1751365505737,5000.0,0.000171,2]
[368783337,1751365522334,5000.0,0.000171,2]
[368783338,1751365527667,152.0,0.00021985,120]
[368783339,1751365528099,152.0,0.00021975,120]
[368783340,1751365528603,152.0,0.00021965,120]
[368783341,1751365530644,153.8678,0.00025137,60]
[368783343,1751365538434,500.0,0.00025137,120]
[368783344,1751365538580,5000.0,0.000171,2]
[368783345,1751365555542,4772.77273948,0.000171,2]
[368783346,1751365555565,227.22726052,0.000171,2]
[368783347,1751365585391,2000.0,0.00016648,120]
[368783348,1751365598386,773.27,0.00025137,60]
[368783349,1751365599148,-386.34206406,0.00017335,2]
[368783352,1751365635293,500.0,0.00025137,120]
[368783355,1751365648409,500.0,0.00025137,60]
[368783356,1751365648662,420.0,0.00025137,60]
[368783363,1751365666837,407.44902098,0.00025137,120]
[368783364,1751365668507,275.68825952,0.00025137,120]
[368783365,1751365672268,604.99994659,0.00025137,120]
[368783366,1751365673176,839.37476926,0.000246,120]
[368783367,1751365685762,200.0,0.00025137,120]
[368783370,1751365696949,204.80223613,0.00025137,120]
[368783371,1751365697584,965.73278667,0.00025137,120]
[368783372,1751365700246,1043.23823161,0.00025137,120]
[368783374,1751365703623,188.0,0.0002,120]
[368783375,1751365705938,965.05830074,0.00025137,120]
[368783376,1751365706359,917.05077098,0.00025137,120]
[368783377,1751365709734,563.26917965,0.00025137,120]
[368783378,1751365714360,191.7437834,0.00025137,120]
[368783379,1751365714782,845.86624876,0.00025137,120]
[368783380,1751365715964,689.18464326,0.00025137,120]
[368783381,1751365717174,1864.65941548,0.00025137,60]
[368783382,1751365717317,240.82074905,0.00025137,120]
[368783383,1751365718016,171.210749,0.00016697,2]
[368783385,1751365718102,333.16707667,0.00025137,120]
[368783386,1751365718229,171.210749,0.00016697,18]
[368783387,1751365718623,171.210749,0.00016697,35]
[368783388,1751365718730,242.45050419,0.00025137,120]
[368783389,1751365718845,171.210749,0.00016697,52]
[368783390,1751365719047,171.210749,0.00016697,69]
[368783391,1751365719149,463.80416867,0.0002,120]
[368783392,1751365719994,2000.0,0.00025137,120]
[368783393,1751365720685,1102.01317112,0.00025137,120]
[368783394,1751365720828,1700.64114184,0.00024,120]
[368783395,1751365721120,409.99426936,0.00024108,120]
[368783396,1751365722521,1799.72333688,0.00024,120]
[368783397,1751365722626,1301.70066296,0.00025137,60]
[368783398,1751365723037,171.210749,0.00016697,86]
[368783399,1751365723262,171.210749,0.00016697,103]
[368783400,1751365723654,171.210749,0.00016697,119]
[368783401,1751365723683,1134.80136135,0.00025137,120]
[368783402,1751365723802,1008.78513934,0.00025137,120]
[368783403,1751365724271,1434.97034115,0.00025137,120]
[368783404,1751365724349,464.95712086,0.00025137,120]
[368783405,1751365724379,1615.80676955,0.00025137,120]
[368783406,1751365724689,400.88149583,0.00025137,60]
[368783407,1751365724845,1565.27119789,0.00025137,120]
[368783408,1751365725259,410.38742022,0.00025137,120]
[368783409,1751365725760,1365.58091484,0.00025137,120]
[368783410,1751365725792,216.18300607,0.00025137,120]
[368783411,1751365725852,427.10291755,0.00025137,120]
[368783412,1751365726443,1981.81523542,0.00025137,120]
[368783414,1751365726944,317.37508635,0.00025137,120]
[368783415,1751365727056,204.0148189,0.00025137,120]
[368783416,1751365727495,411.60017765,0.00024,120]
[368783417,1751365727766,972.64333186,0.00018,120]
[368783418,1751365728437,1069.65367822,0.00025137,120]
[368783419,1751365728681,218.8995663,0.0001536,120]
[368783420,1751365729285,534.83792836,0.00025137,120]
[368783421,1751365729456,546.22182591,0.00025137,120]
[368783422,1751365730050,1013.10833396,0.0002,120]
[368783423,1751365730490,219.66492167,0.00025137,120]
[368783424,1751365730879,497.38634554,0.00025137,60]
[368783425,1751365731180,1054.42651158,0.00025137,120]
[368783426,1751365731313,192.20955688,0.00025137,120]
[368783427,1751365731466,502.20144652,0.0002465,120]
[368783428,1751365731571,250.20295414,0.00024,120]
[368783429,1751365731623,1870.0,0.00025137,120]
[368783430,1751365743655,5455.7257238,0.00016841,2]
[368783431,1751365745120,-727.4235487,0.00017328,2]
[368783432,1751365745142,-4613.65793594,0.00017335,2]
[368783433,1751365745163,-727.4235487,0.00017395,2]
[368783434,1751365745183,-160.0,0.00017428,2]
[368783435,1751365745204,-727.4235487,0.00017462,2]
[368783436,1751365745225,-153.89633756,0.0001751,2]
[368783437,1751365745246,-592.46960657,0.00017529,2]
[368783438,1751365748139,-134.95394213,0.00017529,2]
[368783439,1751365748159,-727.4235487,0.00017596,2]
[368783440,1751365748179,-1967.78916225,0.000176,2]
[368783441,1751365753742,5000.0,0.0001833,6]
[368783442,1751365763105,-1632.87400331,0.00017596,2]
[368783443,1751365763129,-62.67299669,0.000176,2]
[368783444,1751365767138,165.0,0.00021985,120]
[368783445,1751365767621,165.0,0.00021975,120]
[368783446,1751365768053,165.0,0.00021965,120]
[368783447,1751365768187,150.5,0.00021985,120]
[368783448,1751365768726,150.5,0.00021975,120]
[368783449,1751365769085,150.5,0.00021965,120]
[368783451,1751365769777,5000.0,0.0001833,6]
[368783454,1751365788423,5000.0,0.0001833,6]
[368783455,1751365804965,5000.0,0.0001833,6]
[368783456,1751365820668,5000.0,0.0001833,6]
[368783466,1751365831989,-47.80043383,0.000176,2]
[368783467,1751365832000,-460.0,0.00017695,2]
[368783468,1751365832010,-300.0,0.00017695,2]
[368783469,1751365832019,-300.0,0.00017695,2]
[368783470,1751365832029,-300.0,0.00017695,2]
[368783471,1751365832039,-247.0,0.00017695,2]
[368783472,1751365832049,-360.0,0.00017695,2]
[368783473,1751365832058,-496.0,0.00017696,2]
[368783474,1751365832068,-460.0,0.00017696,2]
[368783475,1751365832078,-460.0,0.00017696,2]
[368783476,1751365832087,-460.0,0.00017696,2]
[368783477,1751365832097,-460.0,0.00017696,2]
[368783478,1751365832106,-460.0,0.00017696,2]
[368783479,1751365832115,-709.75,0.00017696,2]
[368783480,1751365832127,-819.78,0.00017698,2]
[368783481,1751365832136,-460.0,0.00017698,2]
[368783482,1751365832146,-460.0,0.00017698,2]
[368783483,1751365832155,-460.0,0.00017698,2]
[368783484,1751365832165,-460.0,0.00017698,2]
[368783485,1751365832174,-460.0,0.00017698,2]
[368783486,1751365832183,-460.0,0.00017698,2]
[368783487,1751365832193,-497.08,0.00017698,2]
[368783488,1751365832202,-460.0,0.00017698,2]
[368783489,1751365832211,-460.0,0.00017698,2]
[368783490,1751365832220,-460.0,0.00017698,2]
[368783491,1751365832230,-460.0,0.00017698,2]
[368783492,1751365832239,-460.0,0.00017698,2]
[368783493,1751365832249,-460.0,0.00017698,2]
[368783494,1751365832258,-460.0,0.00017698,2]
[368783495,1751365832267,-812.24,0.00017698,2]
[368783496,1751365832277,-460.0,0.00017699,2]
[368783497,1751365832286,-460.0,0.00017701,2]
[368783498,1751365832296,-562.08,0.00017701,2]
[368783499,1751365832306,-460.0,0.00017701,2]
[368783500,1751365832315,-460.0,0.00017701,2]
[368783501,1751365832326,-540.94907351,0.00017701,2]
[368783502,1751365832335,-557.67392154,0.00017701,2]
[368783503,1751365832344,-460.0,0.00017701,2]
[368783504,1751365832353,-460.0,0.00017701,2]
[368783505,1751365832363,-460.0,0.00017701,2]
[368783506,1751365832372,-460.0,0.00017701,2]
[368783507,1751365832382,-460.0,0.00017701,2]
[368783508,1751365832391,-460.0,0.00017701,2]
[368783509,1751365832400,-496.87,0.00017701,2]
[368783510,1751365832409,-460.0,0.00017701,2]
[368783511,1751365832419,-460.0,0.00017701,2]
[368783512,1751365832429,-460.0,0.00017701,2]
[368783513,1751365832438,-460.0,0.00017701,2]
[368783514,1751365832447,-460.0,0.00017701,2]
[368783515,1751365832457,-460.0,0.00017701,2]
[368783516,1751365832466,-460.0,0.00017701,2]
[368783517,1751365832476,-460.0,0.00017701,2]
[368783518,1751365832485,-460.0,0.00017701,2]
[368783519,1751365832494,-460.0,0.00017701,2]
[368783520,1751365832504,-460.0,0.00017701,2]
[368783521,1751365832513,-460.0,0.00017701,2]
[368783522,1751365832525,-460.0,0.00017701,2]
[368783523,1751365832534,-460.0,0.00017701,2]
[368783524,1751365832543,-405.20263966,0.00017701,2]
[368783525,1751365832553,-460.0,0.00017701,2]
[368783526,1751365832565,-460.0,0.00017701,2]
[368783527,1751365832580,-460.0,0.00017701,2]
[368783528,1751365832591,-460.0,0.00017701,2]
[368783529,1751365832600,-460.0,0.00017701,2]
[368783530,1751365832610,-460.0,0.00017701,2]
[368783531,1751365832619,-460.0,0.00017703,2]
[368783532,1751365832629,-460.0,0.00017703,2]
[368783533,1751365832638,-460.0,0.00017703,2]
[368783534,1751365832648,-460.0,0.00017703,2]
[368783535,1751365832659,-460.0,0.00017703,2]
[368783536,1751365832669,-460.0,0.00017703,2]
[368783537,1751365832680,-460.0,0.00017703,2]
[368783538,1751365832690,-535.48,0.00017703,2]
[368783539,1751365832699,-460.0,0.00017703,2]
[368783540,1751365832710,-460.0,0.00017703,2]
[368783541,1751365832721,-460.0,0.00017703,2]
[368783542,1751365832731,-460.0,0.00017703,2]
[368783543,1751365832739,-460.0,0.00017703,2]
[368783544,1751365832749,-460.0,0.00017703,2]
[368783545,1751365832758,-460.0,0.00017703,2]
[368783546,1751365832768,-460.0,0.00017704,2]
[368783547,1751365832777,-460.0,0.00017704,2]
[368783548,1751365832786,-460.0,0.00017704,2]
[368783549,1751365832797,-460.0,0.00017704,2]
[368783550,1751365832806,-460.0,0.00017704,2]
[368783551,1751365832815,-460.0,0.00017704,2]
[368783552,1751365832827,-460.0,0.00017704,2]
[368783553,1751365832838,-460.0,0.00017704,2]
[368783554,1751365832847,-460.0,0.00017704,2]
[368783555,1751365832857,-460.0,0.00017704,2]
[368783556,1751365832866,-945.0,0.00017704,2]
[368783557,1751365832875,-460.0,0.00017704,2]
[368783558,1751365832884,-460.0,0.00017704,2]
[368783559,1751365832894,-500.0,0.00017705,2]
[368783560,1751365832904,-460.0,0.00017705,2]
[368783561,1751365832914,-460.0,0.00017705,2]
[368783562,1751365832923,-460.0,0.00017705,2]
[368783563,1751365832938,-460.0,0.00017705,2]
[368783564,1751365832951,-460.0,0.00017705,2]
[368783565,1751365832960,-460.0,0.00017705,2]
[368783566,1751365832969,-460.0,0.00017705,2]
[368783567,1751365832979,-460.0,0.00017705,2]
[368783568,1751365832988,-460.0,0.00017705,2]
[368783569,1751365832999,-460.0,0.00017705,2]
[368783570,1751365833008,-460.0,0.00017705,2]
[368783571,1751365833018,-460.0,0.00017705,2]
[368783572,1751365833027,-460.0,0.00017705,2]
[368783573,1751365833037,-460.0,0.00017705,2]
[368783574,1751365833046,-460.0,0.00017705,2]
[368783575,1751365833056,-460.0,0.00017705,2]
[368783576,1751365833066,-460.0,0.00017705,2]
[368783577,1751365833076,-460.0,0.00017705,2]
[368783578,1751365833086,-460.0,0.00017705,2]
[368783579,1751365833096,-460.0,0.00017705,2]
[368783580,1751365833105,-218.45,0.00017705,2]
[368783581,1751365833114,-460.0,0.00017705,2]
[368783582,1751365833124,-514.45,0.00017705,2]
[368783583,1751365833134,-460.0,0.00017705,2]
[368783584,1751365833143,-460.0,0.00017706,2]
[368783585,1751365833153,-460.0,0.00017706,2]
[368783586,1751365833163,-460.0,0.00017706,2]
[368783587,1751365833174,-460.0,0.00017706,2]
[368783588,1751365833183,-466.03665853,0.00017706,2]
[368783589,1751365833192,-460.0,0.00017706,2]
[368783590,1751365833202,-460.0,0.00017706,2]
[368783591,1751365833211,-460.0,0.00017706,2]
[368783592,1751365833221,-460.0,0.00017706,2]
[368783593,1751365833369,-460.0,0.00017706,2]
[368783594,1751365833379,-460.0,0.00017706,2]
[368783595,1751365833388,-460.0,0.00017706,2]
[368783596,1751365833398,-460.0,0.00017706,2]
[368783597,1751365833418,-460.0,0.00017706,2]
[368783598,1751365833429,-460.0,0.00017706,2]
[368783599,1751365833439,-460.0,0.00017969,2]
[368783600,1751365833449,-460.0,0.0001797,2]
[368783601,1751365833459,-460.0,0.0001797,2]
[368783602,1751365833469,-460.0,0.0001797,2]
[368783603,1751365833479,-709.75,0.0001797,2]
[368783604,1751365833489,-819.78,0.00017972,2]
[368783605,1751365833500,-460.0,0.00017972,2]
[368783606,1751365833510,-460.0,0.00017972,2]
[368783607,1751365833520,-460.0,0.00017972,2]
[368783608,1751365833531,-460.0,0.00017972,2]
[368783609,1751365833541,-497.08,0.00017972,2]
[368783610,1751365833551,-460.0,0.00017972,2]
[368783611,1751365833561,-460.0,0.00017972,2]
[368783612,1751365833571,-460.0,0.00017972,2]
[368783613,1751365833581,-460.0,0.00017972,2]
[368783614,1751365833592,-595.48,0.00017972,2]
[368783615,1751365833602,-460.0,0.00017972,2]
[368783616,1751365833612,-460.0,0.00017972,2]
[368783617,1751365833622,-812.24,0.00017972,2]
[368783618,1751365833632,-460.0,0.00017973,2]
[368783619,1751365833642,-460.0,0.00017975,2]
[368783620,1751365833652,-460.0,0.00017975,2]
[368783621,1751365833663,-460.0,0.00017975,2]
[368783622,1751365833673,-460.0,0.00017975,2]
[368783623,1751365833683,-460.0,0.00017975,2]
[368783624,1751365833692,-460.0,0.00017975,2]
[368783625,1751365833702,-460.0,0.00017975,2]
[368783626,1751365833712,-513.11830622,0.00017975,2]
[368783627,1751365833722,-460.0,0.00017975,2]
[368783628,1751365833732,-460.0,0.00017975,2]
[368783629,1751365833742,-460.0,0.00017975,2]
[368783630,1751365833752,-460.0,0.00017975,2]
[368783631,1751365833761,-460.0,0.00017975,2]
[368783632,1751365833771,-460.0,0.00017975,2]
[368783633,1751365833781,-460.0,0.00017975,2]
[368783634,1751365833791,-460.0,0.00017975,2]
[368783635,1751365833801,-460.0,0.00017975,2]
[368783636,1751365833812,-183.54,0.00017975,2]
[368783637,1751365833822,-460.0,0.00017975,2]
[368783638,1751365833837,-460.0,0.00017975,2]
[368783639,1751365833847,-460.0,0.00017975,2]
[368783640,1751365833858,-460.0,0.00017975,2]
[368783641,1751365833868,-498.08,0.00017975,2]
[368783642,1751365833879,-460.0,0.00017977,2]
[368783643,1751365833889,-460.0,0.00017977,2]
[368783644,1751365833901,-336.82186081,0.00017977,2]
[368783645,1751365833917,-81.67615501,0.00017977,2]
[368783646,1751365833927,-460.0,0.00017977,2]
[368783647,1751365833937,-460.0,0.00017977,2]
[368783648,1751365833947,-535.48,0.00017977,2]
[368783649,1751365833958,-460.0,0.00017977,2]
[368783650,1751365833968,-460.0,0.00017977,2]
[368783651,1751365833978,-460.0,0.00017977,2]
[368783652,1751365833987,-460.0,0.00017977,2]
[368783653,1751365833997,-460.0,0.00017977,2]
[368783654,1751365834007,-460.0,0.00017978,2]
[368783655,1751365834017,-460.0,0.00017978,2]
[368783656,1751365834027,-460.0,0.00017978,2]
[368783657,1751365834036,-460.0,0.00017978,2]
[368783658,1751365834046,-945.0,0.00017978,2]
[368783659,1751365834056,-460.0,0.00017978,2]
[368783660,1751365834066,-421.59241089,0.00017979,2]
[368783661,1751365835224,500.0,0.00025138,120]
[368783706,1751365837959,-500.0,0.00017695,2]
[368783708,1751365837968,-501.67235945,0.00017695,2]
[368783711,1751365837978,-500.0,0.00017695,2]
[368783714,1751365837987,-500.0,0.00017695,2]
[368783716,1751365837997,-500.0,0.00017695,2]
[368783718,1751365838006,-500.0,0.00017695,2]
[368783720,1751365838015,-463.98311657,0.00017695,2]
[368783722,1751365838024,-500.0,0.00017695,2]
[368783724,1751365838034,-500.0,0.00017695,2]
[368783726,1751365838042,-500.0,0.00017695,2]
[368783728,1751365838051,-500.0,0.00017695,2]
[368783730,1751365838061,-500.0,0.00017695,2]
[368783732,1751365838070,-500.0,0.00017695,2]
[368783734,1751365838079,-370.61411133,0.00017695,2]
[368783736,1751365838088,-500.0,0.00017695,2]
[368783738,1751365838098,-500.0,0.00017695,2]
[368783740,1751365838108,-500.0,0.00017695,2]
[368783742,1751365838118,-218.77591477,0.00017695,2]
[368783745,1751365838127,-500.0,0.00017695,2]
[368783747,1751365838135,-500.0,0.00017695,2]
[368783749,1751365838145,-500.0,0.00017695,2]
[368783751,1751365838155,-500.0,0.00017695,2]
[368783753,1751365838166,-500.0,0.00017695,2]
[368783755,1751365838175,-500.0,0.00017695,2]
[368783757,1751365838184,-637.47157753,0.00017695,2]
[368783759,1751365838194,-500.0,0.00017695,2]
[368783761,1751365838203,-500.0,0.00017695,2]
[368783763,1751365838212,-295.73672751,0.00017695,2]
[368783765,1751365838224,-204.26327249,0.00017695,2]
[368783767,1751365838233,-500.0,0.00017695,2]
[368783769,1751365838243,-500.0,0.00017695,2]
[368783771,1751365838252,-500.0,0.00017695,2]
[368783773,1751365838261,-375.0,0.00017695,2]
[368783775,1751365838270,-500.0,0.00017695,2]
[368783777,1751365838279,-500.0,0.00017695,2]
[368783779,1751365838287,-500.0,0.00017695,2]
[368783781,1751365838297,-500.0,0.00017695,2]
[368783783,1751365838305,-500.0,0.00017695,2]
[368783785,1751365838315,-500.0,0.00017695,2]
[368783787,1751365838324,-385.47834253,0.00017695,2]
[368783789,1751365838334,-500.0,0.00017695,2]
[368783791,1751365838343,-751.47,0.00017696,2]
[368783793,1751365838352,-460.0,0.00017705,2]
[368783795,1751365838362,-751.47,0.0001797,2]
[368783797,1751365838371,-38.40758911,0.00017979,2]
[368783799,1751365838380,-460.0,0.00017979,2]
[368783800,1751365838390,-460.0,0.00017979,2]
[368783802,1751365838399,-460.0,0.00017979,2]
[368783804,1751365838408,-460.0,0.00017979,2]
[368783806,1751365838418,-460.0,0.00017979,2]
[368783808,1751365838427,-460.0,0.00017979,2]
[368783810,1751365838436,-460.0,0.00017979,2]
[368783812,1751365838445,-460.0,0.00017979,2]
[368783814,1751365838455,-460.0,0.00017979,2]
[368783816,1751365838465,-460.0,0.00017979,2]
[368783818,1751365838474,-460.0,0.0001798,2]
[368783820,1751365838483,-460.0,0.0001798,2]
[368783822,1751365838493,-550.8,0.0001798,2]
[368783825,1751365838507,-460.0,0.0001798,2]
[368783827,1751365838516,-460.0,0.0001798,2]
[368783829,1751365838526,-256.21821829,0.0001798,2]
[368783831,1751365838535,-460.0,0.0001798,2]
[368783833,1751365838544,-460.0,0.0001798,2]
[368783835,1751365838554,-16559.41773949,0.00018,2]
[368783837,1751365838563,-4623.17132964,0.00018,2]
[368783839,1751365838573,-366.72,0.00018234,3]
[368783841,1751365838583,-366.72,0.00018236,3]
[368783843,1751365838592,-460.0,0.00018243,2]
[368783845,1751365838602,-519.51397845,0.00018244,2]
[368783847,1751365838612,-460.0,0.00018244,2]
[368783849,1751365838622,-460.0,0.00018244,2]
[368783851,1751365838631,-709.75,0.00018244,2]
[368783853,1751365838641,-751.47,0.00018244,2]
[368783855,1751365838650,-460.0,0.00018246,2]
[368783856,1751365838660,-460.0,0.00018246,2]
[368783857,1751365838669,-460.0,0.00018246,2]
[368783858,1751365838678,-460.0,0.00018246,2]
[368783859,1751365838687,-497.08,0.00018246,2]
[368783860,1751365838697,-460.0,0.00018246,2]
[368783861,1751365838706,-460.0,0.00018246,2]
[368783862,1751365838715,-460.0,0.00018246,2]
[368783863,1751365838724,-460.0,0.00018246,2]
[368783864,1751365838734,-812.24,0.00018246,2]
[368783865,1751365838743,-170.68,0.00018249,2]
[368783866,1751365838753,-249.15,0.00018249,2]
[368783867,1751365838764,-460.0,0.00018249,2]
[368783868,1751365838774,-460.0,0.00018249,2]
[368783869,1751365838787,-460.0,0.00018249,2]
[368783870,1751365838797,-460.0,0.00018249,2]
[368783871,1751365838806,-460.0,0.00018249,2]
[368783872,1751365838815,-460.0,0.00018249,2]
[368783873,1751365838826,-599.37306679,0.00018249,2]
[368783874,1751365838837,-460.0,0.00018249,2]
[368783875,1751365838847,-460.0,0.00018249,2]
[368783876,1751365838858,-460.0,0.00018249,2]
[368783877,1751365838868,-304.53521825,0.00018251,2]
[368783878,1751365838877,-375.79,0.00018251,2]
[368783879,1751365838887,-460.0,0.00018251,2]
[368783880,1751365838898,-535.48,0.00018251,2]
[368783881,1751365838908,-460.0,0.00018251,2]
[368783882,1751365838918,-460.0,0.00018251,2]
[368783883,1751365838927,-460.0,0.00018251,2]
[368783884,1751365838937,-460.0,0.00018251,2]
[368783885,1751365838947,-460.0,0.00018251,2]
[368783886,1751365838956,-460.0,0.00018252,2]
[368783887,1751365838966,-460.0,0.00018252,2]
[368783888,1751365838976,-460.0,0.00018252,2]
[368783889,1751365838985,-945.0,0.00018252,2]
[368783890,1751365838995,-460.0,0.00018252,2]
[368783891,1751365839005,-460.0,0.00018253,2]
[368783892,1751365839014,-495.1,0.00018253,2]
[368783893,1751365839023,-185.38133854,0.00018253,2]
[368783894,1751365839033,-248.91,0.00018253,2]
[368783895,1751365839043,-460.0,0.00018253,2]
[368783896,1751365839052,-460.0,0.00018253,2]
[368783897,1751365839062,-460.0,0.00018253,2]
[368783898,1751365839071,-460.0,0.00018254,2]
[368783899,1751365839081,-460.0,0.00018254,2]
[368783900,1751365839091,-460.0,0.00018254,2]
[368783901,1751365839101,-501.93154519,0.00018323,2]
[368783902,1751365839110,-517.43529713,0.00018323,2]
[368783903,1751365839119,-500.0,0.0001835,2]
[368783904,1751365839129,-501.60650309,0.0001835,2]
[368783905,1751365839138,-502.65178596,0.0001835,2]
[368783906,1751365839148,-502.17935928,0.0001835,2]
[368783907,1751365839158,-500.0,0.0001835,2]
[368783908,1751365839167,-500.0,0.00018392,2]
[368783909,1751365839177,-500.0,0.00018392,2]
[368783910,1751365839186,-500.0,0.00018392,2]
[368783911,1751365839195,-500.53455352,0.00018392,2]
[368783912,1751365839205,-519.47230444,0.00018392,2]
[368783913,1751365839214,-500.0,0.00018392,2]
[368783914,1751365839224,-500.0,0.00018392,2]
[368783915,1751365839233,-502.55043655,0.00018392,2]
[368783916,1751365839242,-500.0,0.00018392,2]
[368783917,1751365839252,-460.0,0.00018518,2]
[368783918,1751365839261,-460.0,0.00018518,2]
[368783919,1751365839271,-709.75,0.00018518,2]
[368783920,1751365839280,-751.47,0.00018518,2]